fUST/lending_fUST_20250628
["ID","MTS","AMOUNT","RATE_DAILY","PERIOD"]
[368318123,1751115053768,-2275.84,0.00021369,2]
[368318124,1751115053778,-1236.25,0.00021369,2]
[368318125,1751115053787,-3183.73,0.00021369,2]
[368318126,1751115053796,-460.0,0.00021369,2]
[368318127,1751115053805,-531.72,0.00021369,2]
[368318128,1751115053815,-460.0,0.00021369,2]
[368318129,1751115053823,-460.0,0.00021369,2]
[368318130,1751115053833,-1162.18,0.00021369,2]
[368318131,1751115053843,-820.51,0.00021369,2]
[368318132,1751115053852,-460.0,0.00021369,2]
[368318133,1751115053861,-1274.91,0.00021369,2]
[368318134,1751115053871,-2958.89,0.00021369,2]
[368318135,1751115053880,-460.0,0.00021369,2]
[368318136,1751115053890,-754.43,0.00021369,2]
[368318137,1751115053899,-460.0,0.00021369,2]
[368318138,1751115053908,-751.04,0.00021369,2]
[368318139,1751115053918,-474.15,0.00021369,2]
[368318140,1751115053928,-460.0,0.00021369,2]
[368318141,1751115053937,-1103.87,0.00021369,2]
[368318142,1751115053946,-500.0,0.00021375,2]
[368318143,1751115053956,-366.1706175,0.00021397,2]
[368318144,1751115053965,-366.1706175,0.00021397,2]
[368318145,1751115053974,-2729.88,0.000214,2]
[368318146,1751115054088,-395.930989,0.00021442,4]
[368318147,1751115054097,-439.0,0.00021453,2]
[368318148,1751115054107,-151.0,0.00021457,2]
[368318149,1751115054116,-151.0,0.00021478,5]
[368318150,1751115054126,-439.0,0.00021482,2]
[368318151,1751115054135,-412.0,0.00021508,2]
[368318152,1751115054144,-151.0,0.00021555,2]
[368318153,1751115054154,-262.125967,0.00021555,2]
[368318154,1751115054163,-262.125967,0.00021555,2]
[368318155,1751115054173,-5157.62640033,0.00021555,5]
[368318156,1751115054183,-155.18730198,0.00021562,2]
[368318157,1751115054192,-412.0,0.00021566,2]
[368318158,1751115054201,-151.0,0.00021567,2]
[368318159,1751115054214,-151.0,0.00021567,2]
[368318160,1751115054224,-151.0,0.00021567,2]
[368318161,1751115054233,-151.0,0.00021567,2]
[368318162,1751115054243,-287.972913,0.00021567,2]
[368318163,1751115054252,-287.972913,0.00021567,2]
[368318164,1751115054261,-151.0,0.00021567,2]
[368318165,1751115054271,-185.990932,0.00021567,2]
[368318166,1751115054280,-185.990932,0.00021567,2]
[368318167,1751115054290,-262.125967,0.00021567,2]
[368318168,1751115054300,-262.125967,0.00021567,2]
[368318169,1751115054309,-437.870824,0.00021567,2]
[368318170,1751115054318,-437.870824,0.00021567,2]
[368318171,1751115054327,-301.231376,0.00021567,2]
[368318172,1751115054337,-301.231376,0.00021567,2]
[368318173,1751115054347,-151.0,0.00021567,2]
[368318174,1751115054356,-151.0,0.00021567,2]
[368318175,1751115054366,-189.741548,0.00021567,2]
[368318176,1751115054375,-189.741548,0.00021567,2]
[368318177,1751115054384,-431.279927,0.00021567,2]
[368318178,1751115054394,-431.279927,0.00021567,2]
[368318179,1751115054403,-1764.119536,0.00021567,2]
[368318180,1751115054412,-1764.119536,0.00021567,2]
[368318181,1751115054422,-151.0,0.00021567,2]
[368318182,1751115054431,-151.0,0.00021567,2]
[368318183,1751115054441,-93375.4432198,0.00021567,2]
[368318184,1751115054621,-64803.15933249,0.00021567,2]
[368318185,1751115054631,-170.430981,0.00021573,6]
[368318186,1751115054641,-439.0,0.00021586,2]
[368318187,1751115054652,-151.0,0.000216,4]
[368318188,1751115054662,-160.0,0.00021608,5]
[368318189,1751115054672,-565.32272845,0.00021621,2]
[368318190,1751115054682,-500.0,0.00021623,2]
[368318191,1751115054692,-587.0,0.00021629,2]
[368318192,1751115054702,-360.0,0.00021629,2]
[368318193,1751115054712,-500.0,0.0002163,2]
[368318194,1751115054721,-500.0,0.0002163,2]
[368318195,1751115054731,-500.44087651,0.0002163,2]
[368318196,1751115054740,-500.0,0.0002163,2]
[368318197,1751115054749,-500.0,0.0002163,2]
[368318198,1751115054759,-600.0,0.0002163,2]
[368318199,1751115054769,-158.22305744,0.0002163,2]
[368318200,1751115054779,-501.77857979,0.0002163,2]
[368318201,1751115054788,-500.0,0.0002163,2]
[368318202,1751115054798,-500.0,0.0002163,2]
[368318203,1751115054808,-500.0,0.0002163,2]
[368318204,1751115054817,-151.0,0.00021638,5]
[368318205,1751115054826,-200.0,0.0002164,2]
[368318206,1751115054836,-151.0,0.00021643,2]
[368318207,1751115054846,-151.0,0.00021643,2]
[368318208,1751115054855,-151.0,0.00021643,2]
[368318209,1751115054865,-151.0,0.00021643,2]
[368318210,1751115054875,-151.0,0.00021643,2]
[368318211,1751115054885,-151.0,0.00021643,2]
[368318212,1751115054895,-151.0,0.00021643,2]
[368318213,1751115054904,-151.0,0.00021643,2]
[368318214,1751115054914,-151.0,0.00021643,2]
[368318215,1751115054924,-304.493631,0.00021643,2]
[368318216,1751115054933,-304.493631,0.00021643,2]
[368318217,1751115054943,-460.0,0.00021643,2]
[368318218,1751115054952,-460.0,0.00021643,2]
[368318219,1751115054961,-460.0,0.00021643,2]
[368318220,1751115054970,-460.0,0.00021643,2]
[368318221,1751115054979,-460.0,0.00021643,2]
[368318222,1751115054989,-532.24,0.00021643,2]
[368318223,1751115054998,-710.4,0.00021643,2]
[368318224,1751115055008,-460.0,0.00021643,2]
[368318225,1751115055017,-1168.29121524,0.00021643,2]
[368318226,1751115055029,-175.97878476,0.00021643,2]
[368318227,1751115055038,-460.0,0.00021643,2]
[368318228,1751115055048,-460.0,0.00021643,2]
[368318229,1751115055057,-1439.49,0.00021643,2]
[368318230,1751115055066,-460.0,0.00021643,2]
[368318231,1751115055076,-1672.88,0.00021643,2]
[368318232,1751115055085,-612.5,0.00021643,2]
[368318233,1751115055095,-460.0,0.00021643,2]
[368318234,1751115055104,-1962.74,0.00021643,2]
[368318235,1751115055114,-460.0,0.00021643,2]
[368318236,1751115055123,-460.0,0.00021643,2]
[368318237,1751115055133,-581.47,0.00021643,2]
[368318238,1751115055143,-1611.03,0.00021643,2]
[368318239,1751115055154,-460.0,0.00021643,2]
[368318240,1751115055164,-377.44002458,0.00021643,2]
[368318241,1751115055186,-460.0,0.00019178,2]
[368318242,1751115055196,-82.55997542,0.00021643,2]
[368318243,1751115055206,-676.37,0.00021643,2]
[368318244,1751115055217,-1690.28850302,0.00021643,2]
[368318245,1751115056284,-460.0,0.0002,2]
[368318246,1751115056293,-501.72,0.00020273,2]
[368318247,1751115056402,-360.60149698,0.00021643,2]
[368318248,1751115056412,-460.0,0.00021643,2]
[368318249,1751115056421,-460.0,0.00021643,2]
[368318250,1751115056431,-460.0,0.00021643,2]
[368318251,1751115056441,-460.0,0.00021643,2]
[368318252,1751115056450,-1460.37,0.00021643,2]
[368318253,1751115056459,-1746.14,0.00021643,2]
[368318254,1751115056468,-460.0,0.00021643,2]
[368318255,1751115056477,-460.0,0.00021643,2]
[368318256,1751115056486,-782.72,0.00021643,2]
[368318257,1751115056496,-491.42,0.00021643,2]
[368318258,1751115056507,-2275.84,0.00021643,2]
[368318259,1751115056516,-1236.25,0.00021643,2]
[368318260,1751115056525,-684.51494786,0.00021643,2]
[368318261,1751115056540,-2499.21505214,0.00021643,2]
[368318262,1751115056549,-460.0,0.00021643,2]
[368318263,1751115056559,-53.43954828,0.00021643,2]
[368318264,1751115056626,-505.03537856,0.00019178,2]
[368318265,1751115056636,-540.0,0.00019178,2]
[368318266,1751115056645,-478.28045172,0.00021643,2]
[368318267,1751115056655,-139.18416972,0.00021643,2]
[368318268,1751115056667,-320.81583028,0.00021643,2]
[368318269,1751115056675,-460.0,0.00021643,2]
[368318270,1751115056685,-1162.18,0.00021643,2]
[368318271,1751115056695,-820.51,0.00021643,2]
[368318272,1751115056704,-460.0,0.00021643,2]
[368318273,1751115056713,-1274.91,0.00021643,2]
[368318274,1751115056723,-460.0,0.00021643,2]
[368318275,1751115056732,-2958.89,0.00021643,2]
[368318276,1751115056741,-754.43,0.00021643,2]
[368318277,1751115056750,-460.0,0.00021643,2]
[368318278,1751115056759,-751.04,0.00021643,2]
[368318279,1751115056769,-474.15,0.00021643,2]
[368318280,1751115056778,-460.0,0.00021643,2]
[368318281,1751115056787,-247.7468156,0.00021643,2]
[368318288,1751115246190,5000.0,0.0001817,2]
[368318289,1751115261944,5000.0,0.0001817,2]
[368318290,1751115278957,3161.92668414,0.0001817,2]
[368318291,1751115291075,151.0,0.0001817,2]
[368318293,1751115310783,-167.451447,0.00018416,2]
[368318294,1751115310804,-305.87243162,0.00018603,2]
[368318295,1751115310834,-152.93621581,0.00018868,2]
[368318296,1751115310857,-160.0,0.00018984,2]
[368318297,1751115310878,-300.0,0.00019177,2]
[368318298,1751115310899,-300.0,0.00019177,2]
[368318299,1751115310921,-1200.0,0.00019177,2]
[368318300,1751115310945,-175.0,0.00019177,2]
[368318301,1751115310967,-500.0,0.00019177,2]
[368318302,1751115310989,-500.0,0.00019177,2]
[368318303,1751115311012,-460.0,0.00019178,2]
[368318304,1751115311034,-285.47012378,0.00019178,2]
[368318305,1751115311056,-460.0,0.00019178,2]
[368318306,1751115311077,-460.0,0.00019178,2]
[368318307,1751115311101,-460.0,0.00019178,2]
[368318308,1751115311122,-460.0,0.00019178,2]
[368318309,1751115311143,-460.0,0.00019178,2]
[368318310,1751115311166,-460.0,0.00019178,2]
[368318311,1751115311187,-808.53260332,0.00019178,2]
[368318312,1751115311209,-460.0,0.00019178,2]
[368318313,1751115311230,-460.0,0.00019178,2]
[368318314,1751115311254,-460.0,0.00019178,2]
[368318315,1751115311275,-460.0,0.00019178,2]
[368318316,1751115311300,-460.0,0.00019178,2]
[368318317,1751115311321,-491.94,0.00019178,2]
[368318318,1751115311343,-460.0,0.00019178,2]
[368318319,1751115311364,-460.0,0.00019178,2]
[368318320,1751115311386,-460.0,0.00019178,2]
[368318321,1751115311407,-460.0,0.00019178,2]
[368318322,1751115311429,-460.0,0.00019178,2]
[368318323,1751115311455,-460.0,0.00019178,2]
[368318324,1751115311477,-460.0,0.00019178,2]
[368318325,1751115311498,-460.0,0.00019178,2]
[368318326,1751115311523,-460.0,0.00019178,2]
[368318327,1751115311544,-460.0,0.00019178,2]
[368318328,1751115311566,-460.0,0.00019178,2]
[368318329,1751115311590,-460.0,0.00019178,2]
[368318330,1751115311621,-460.0,0.00019178,2]
[368318331,1751115311647,-460.0,0.00019178,2]
[368318332,1751115311677,-395.17628783,0.00019178,2]
[368318333,1751115311707,-460.0,0.00019178,2]
[368318334,1751115311736,-465.57392796,0.00019178,2]
[368318335,1751115311768,-1033.04,0.00019178,2]
[368318336,1751115311789,-460.0,0.00019178,2]
[368318337,1751115311812,-460.0,0.00019178,2]
[368318338,1751115311834,-460.0,0.00019178,2]
[368318339,1751115311857,-460.0,0.00019178,2]
[368318340,1751115311878,-464.90056591,0.00019178,2]
[368318341,1751115311901,-1034.10639677,0.00019178,2]
[368318342,1751115456030,20290.63453926,0.00018153,2]
[368318343,1751115485607,1263.3762632,0.00018082,2]
[368318344,1751115843638,4267.3839632,0.00018095,2]
[368318346,1751115945660,322.755667,0.00013699,2]
[368318348,1751116038001,247.35596518,0.00018053,2]
[368318349,1751116048090,-160.0,0.00018153,2]
[368318350,1751116048111,-508.50689694,0.00018153,2]
[368318351,1751116131129,343.5924766,0.00017934,2]
[368318388,1751116231686,-160.0,0.00018153,2]
[368318390,1751116231695,-869.68057,0.00018153,2]
[368318392,1751116231707,-3231.1779938,0.00018153,2]
[368318394,1751116231716,-300.0,0.00018245,2]
[368318396,1751116231726,-1096.3406767,0.00018246,2]
[368318398,1751116231735,-203.0860488,0.00018749,2]
[368318400,1751116231745,-1245.8998753,0.00018785,2]
[368318402,1751116231754,-233.06917558,0.000189,2]
[368318404,1751116231763,-300.0,0.00019098,2]
[368318406,1751116231773,-300.0,0.00019099,2]
[368318408,1751116231782,-1200.0,0.00019099,2]
[368318410,1751116231791,-300.0,0.00019099,2]
[368318412,1751116231800,-3569.42049762,0.000191,7]
[368318414,1751116231810,-460.0,0.00019178,2]
[368318416,1751116231819,-460.0,0.00019178,2]
[368318418,1751116231829,-460.0,0.00019178,2]
[368318420,1751116231838,-460.0,0.00019178,2]
[368318421,1751116231847,-460.0,0.00019178,2]
[368318422,1751116231856,-460.0,0.00019178,2]
[368318423,1751116231867,-460.0,0.00019178,2]
[368318424,1751116231876,-260.91597957,0.00019178,2]
[368318425,1751116231885,-460.0,0.00019178,2]
[368318426,1751116231894,-460.0,0.00019178,2]
[368318427,1751116231903,-460.0,0.00019178,2]
[368318428,1751116231913,-460.0,0.00019178,2]
[368318429,1751116231921,-460.0,0.00019178,2]
[368318430,1751116231930,-298.30678478,0.00019178,2]
[368318431,1751116231940,-460.0,0.00019178,2]
[368318433,1751116231950,-460.0,0.00019178,2]
[368318434,1751116231959,-460.0,0.00019178,2]
[368318435,1751116231968,-460.0,0.00019178,2]
[368318436,1751116231977,-460.0,0.00019178,2]
[368318437,1751116231987,-197.17035176,0.00019178,2]
[368318438,1751116231996,-406.19938295,0.00019178,2]
[368318439,1751116232007,-460.0,0.00019178,2]
[368318440,1751116232016,-460.0,0.00019178,2]
[368318441,1751116232025,-460.0,0.00019178,2]
[368318442,1751116232035,-310.23214191,0.00019178,2]
[368318443,1751116232252,-460.0,0.00019178,2]
[368318444,1751116232261,-460.0,0.00019178,2]
[368318445,1751116232270,-590.90866832,0.00019178,2]
[368318446,1751116232280,-460.0,0.00019178,2]
[368318447,1751116232290,-335.77549188,0.00019178,2]
[368318448,1751116232299,-379.9585558,0.00019178,2]
[368318449,1751116232308,-460.0,0.00019178,2]
[368318450,1751116232317,-460.0,0.00019178,2]
[368318451,1751116232328,-460.5968251,0.00019178,2]
[368318452,1751116232337,-460.0,0.00019178,2]
[368318453,1751116232346,-460.0,0.00019178,2]
[368318454,1751116232356,-465.99300752,0.00019178,2]
[368318455,1751116232366,-460.0,0.00019178,2]
[368318456,1751116232375,-460.0,0.00019178,2]
[368318457,1751116232384,-460.0,0.00019178,2]
[368318458,1751116232394,-407.52630555,0.00019178,2]
[368318459,1751116232403,-460.0,0.00019178,2]
[368318460,1751116232412,-460.0,0.00019178,2]
[368318461,1751116232422,-461.14339213,0.00019178,2]
[368318462,1751116232431,-490.0,0.00019178,2]
[368318463,1751116232440,-460.0,0.00019178,2]
[368318464,1751116232449,-460.0,0.00019178,2]
[368318465,1751116232459,-460.0,0.00019178,2]
[368318466,1751116232468,-460.0,0.00019178,2]
[368318467,1751116232480,-460.0,0.00019178,2]
[368318468,1751116232489,-460.0,0.00019178,2]
[368318469,1751116232498,-460.0,0.00019178,2]
[368318470,1751116232508,-460.0,0.00019178,2]
[368318471,1751116232518,-460.0,0.00019178,2]
[368318472,1751116232527,-460.0,0.00019178,2]
[368318473,1751116232536,-460.0,0.00019178,2]
[368318474,1751116232545,-460.0,0.00019178,2]
[368318475,1751116232555,-460.0,0.00019178,2]
[368318476,1751116232564,-460.0,0.00019178,2]
[368318477,1751116232574,-460.78458219,0.00019178,2]
[368318478,1751116232583,-460.0,0.00019178,2]
[368318479,1751116232592,-460.0,0.00019178,2]
[368318480,1751116232601,-486.41704901,0.00019178,2]
[368318481,1751116232610,-460.0,0.00019178,2]
[368318482,1751116232620,-461.70335449,0.00019178,2]
[368318483,1751116232628,-199.0722401,0.00019178,2]
[368318484,1751116232638,-460.0,0.00019178,2]
[368318485,1751116232647,-460.0,0.00019178,2]
[368318486,1751116232657,-460.0,0.00019178,2]
[368318487,1751116232666,-460.0,0.00019178,2]
[368318488,1751116232676,-460.0,0.00019178,2]
[368318489,1751116232686,-460.0,0.00019178,2]
[368318490,1751116232696,-460.0,0.00019178,2]
[368318491,1751116232705,-460.0,0.00019178,2]
[368318492,1751116232714,-460.0,0.00019178,2]
[368318493,1751116232732,-460.0,0.00019178,2]
[368318494,1751116232745,-460.0,0.00019178,2]
[368318495,1751116232755,-460.0,0.00019178,2]
[368318496,1751116232765,-460.0,0.00019178,2]
[368318497,1751116232775,-310.0,0.00019178,2]
[368318498,1751116232784,-460.0,0.00019178,2]
[368318499,1751116232795,-463.23703374,0.00019178,2]
[368318500,1751116232804,-460.64843793,0.00019178,2]
[368318501,1751116232814,-460.0,0.00019178,2]
[368318502,1751116232824,-460.0,0.00019178,2]
[368318503,1751116232834,-460.0,0.00019178,2]
[368318504,1751116232843,-460.0,0.00019178,2]
[368318505,1751116232853,-460.0,0.00019178,2]
[368318506,1751116232863,-539.05848828,0.00019178,2]
[368318507,1751116232873,-460.0,0.00019178,2]
[368318508,1751116232882,-460.0,0.00019178,2]
[368318509,1751116232892,-460.0,0.00019178,2]
[368318510,1751116232902,-460.0,0.00019178,2]
[368318511,1751116232912,-460.0,0.00019178,2]
[368318512,1751116232922,-212.85,0.00019178,2]
[368318513,1751116232931,-460.0,0.00019178,2]
[368318514,1751116232941,-460.0,0.00019178,2]
[368318515,1751116232951,-460.0,0.00019178,2]
[368318516,1751116232961,-460.0,0.00019178,2]
[368318517,1751116232970,-460.0,0.00019178,2]
[368318518,1751116232981,-460.0,0.00019178,2]
[368318519,1751116232990,-461.86744919,0.00019178,2]
[368318520,1751116233000,-460.0,0.00019178,2]
[368318521,1751116233010,-462.50682402,0.00019178,2]
[368318522,1751116233019,-460.0,0.00019178,2]
[368318523,1751116233029,-454.0,0.00019178,2]
[368318524,1751116233038,-460.0,0.00019178,2]
[368318525,1751116233048,-460.0,0.00019178,2]
[368318526,1751116233058,-245.0,0.00019178,2]
[368318527,1751116233068,-460.0,0.00019178,2]
[368318528,1751116233079,-460.0,0.00019178,2]
[368318529,1751116233092,-460.0,0.00019178,2]
[368318530,1751116233102,-465.858489,0.00019178,2]
[368318531,1751116233112,-460.0,0.00019178,2]
[368318532,1751116233122,-460.0,0.00019178,2]
[368318533,1751116233131,-460.0,0.00019178,2]
[368318534,1751116233142,-421.69146487,0.00019178,2]
[368318535,1751116233151,-460.0,0.00019178,2]
[368318536,1751116233162,-460.0,0.00019178,2]
[368318537,1751116233172,-460.0,0.00019178,2]
[368318538,1751116233181,-460.0,0.00019178,2]
[368318539,1751116233191,-460.0,0.00019178,2]
[368318540,1751116233200,-460.0,0.00019178,2]
[368318541,1751116233210,-460.0,0.00019178,2]
[368318542,1751116233220,-460.0,0.00019178,2]
[368318543,1751116233230,-460.0,0.00019178,2]
[368318544,1751116233239,-460.0,0.00019178,2]
[368318545,1751116233248,-460.0,0.00019178,2]
[368318546,1751116233258,-460.0,0.00019178,2]
[368318547,1751116233268,-460.0,0.00019178,2]
[368318548,1751116233280,-460.0,0.00019178,2]
[368318549,1751116233290,-460.0,0.00019178,2]
[368318550,1751116233301,-460.0,0.00019178,2]
[368318551,1751116233311,-460.0,0.00019178,2]
[368318552,1751116233320,-460.0,0.00019178,2]
[368318553,1751116233330,-460.0,0.00019178,2]
[368318554,1751116233339,-460.0,0.00019178,2]
[368318555,1751116233349,-500.0,0.00019178,2]
[368318556,1751116233358,-460.0,0.00019178,2]
[368318557,1751116233368,-460.0,0.00019178,2]
[368318558,1751116233377,-460.0,0.00019178,2]
[368318559,1751116233386,-460.0,0.00019178,2]
[368318560,1751116233396,-460.0,0.00019178,2]
[368318561,1751116233405,-197.12501723,0.00019178,2]
[368318562,1751116233415,-460.0,0.00019178,2]
[368318563,1751116233424,-460.0,0.00019178,2]
[368318564,1751116233434,-460.0,0.00019178,2]
[368318565,1751116233443,-460.0,0.00019178,2]
[368318566,1751116233452,-460.0,0.00019178,2]
[368318567,1751116233462,-460.0,0.00019178,2]
[368318568,1751116233471,-460.0,0.00019178,2]
[368318569,1751116233481,-460.0,0.00019178,2]
[368318570,1751116233491,-460.0,0.00019178,2]
[368318571,1751116233500,-460.0,0.00019178,2]
[368318572,1751116233510,-461.84,0.00019178,2]
[368318573,1751116233520,-460.0,0.00019178,2]
[368318574,1751116233529,-460.0,0.00019178,2]
[368318575,1751116233538,-460.0,0.00019178,2]
[368318576,1751116233548,-460.0,0.00019178,2]
[368318577,1751116233557,-460.0,0.00019178,2]
[368318578,1751116233567,-460.0,0.00019178,2]
[368318579,1751116233576,-460.0,0.00019178,2]
[368318580,1751116233586,-460.0,0.00019178,2]
[368318581,1751116233595,-460.0,0.00019178,2]
[368318582,1751116233605,-460.0,0.00019178,2]
[368318583,1751116233615,-396.10813515,0.00019178,2]
[368318584,1751116233767,-63.89186485,0.00019178,2]
[368318585,1751116233777,-460.0,0.00019178,2]
[368318586,1751116233787,-460.0,0.00019178,2]
[368318587,1751116233796,-460.0,0.00019178,2]
[368318588,1751116233806,-460.0,0.00019178,2]
[368318589,1751116233815,-460.0,0.00019178,2]
[368318590,1751116233825,-460.0,0.00019178,2]
[368318591,1751116233835,-460.0,0.00019178,2]
[368318592,1751116233844,-379.6644156,0.00019178,2]
[368318593,1751116233854,-460.0,0.00019178,2]
[368318594,1751116233864,-460.0,0.00019178,2]
[368318595,1751116233874,-460.0,0.00019178,2]
[368318596,1751116233884,-218.80959887,0.00019178,2]
[368318597,1751116233893,-460.0,0.00019178,2]
[368318598,1751116233902,-460.0,0.00019178,2]
[368318599,1751116233914,-460.0,0.00019178,2]
[368318600,1751116233923,-460.0,0.00019178,2]
[368318601,1751116233932,-460.0,0.00019178,2]
[368318602,1751116233942,-460.0,0.00019178,2]
[368318603,1751116233951,-460.0,0.00019178,2]
[368318604,1751116233960,-121.15739408,0.00019178,2]
[368318605,1751116233972,-340.18300023,0.00019178,2]
[368318606,1751116233982,-500.0,0.00019178,2]
[368318607,1751116233992,-205.91899977,0.00019178,2]
[368318628,1751116237602,-254.08100023,0.00019178,2]
[368318630,1751116237611,-460.0,0.00019178,2]
[368318632,1751116237620,-402.99900377,0.00019178,2]
[368318640,1751116237709,-57.00099623,0.00019178,2]
[368318641,1751116237718,-460.0,0.00019178,2]
[368318642,1751116237727,-460.0,0.00019178,2]
[368318643,1751116237737,-460.0,0.00019178,2]
[368318644,1751116237747,-460.0,0.00019178,2]
[368318645,1751116237757,-584.23812289,0.00019178,2]
[368318646,1751116237769,-460.0,0.00019178,2]
[368318647,1751116237778,-460.0,0.00019178,2]
[368318648,1751116237788,-464.74664059,0.00019178,2]
[368318649,1751116237797,-460.0,0.00019178,2]
[368318650,1751116237807,-460.0,0.00019178,2]
[368318651,1751116237816,-460.0,0.00019178,2]
[368318652,1751116237825,-507.65813884,0.00019178,2]
[368318653,1751116237834,-500.0,0.00019178,2]
[368318654,1751116237843,-500.0,0.00019178,2]
[368318655,1751116237852,-460.0,0.00019178,2]
[368318656,1751116237862,-500.0,0.00019178,2]
[368318657,1751116237871,-500.0,0.00019178,2]
[368318658,1751116237881,-500.0,0.00019178,2]
[368318659,1751116237890,-500.0,0.00019178,2]
[368318660,1751116237899,-460.0,0.00019178,2]
[368318661,1751116237909,-500.0,0.00019178,2]
[368318662,1751116237919,-460.0,0.00019178,2]
[368318663,1751116237928,-460.0,0.00019178,2]
[368318664,1751116237937,-460.0,0.00019178,2]
[368318665,1751116237947,-460.0,0.00019178,2]
[368318666,1751116237956,-460.0,0.00019178,2]
[368318667,1751116237965,-674.35,0.00019178,2]
[368318668,1751116237975,-460.0,0.00019178,2]
[368318669,1751116237984,-460.0,0.00019178,2]
[368318670,1751116237994,-460.0,0.00019178,2]
[368318671,1751116238004,-340.70265601,0.00019178,2]
[368318672,1751116238013,-460.0,0.00019178,2]
[368318673,1751116238023,-460.0,0.00019178,2]
[368318674,1751116238032,-460.0,0.00019178,2]
[368318675,1751116238041,-460.0,0.00019178,2]
[368318676,1751116238051,-460.0,0.00019178,2]
[368318677,1751116238061,-460.0,0.00019178,2]
[368318678,1751116238070,-460.0,0.00019178,2]
[368318679,1751116238080,-500.0,0.00019178,2]
[368318680,1751116238099,-271.79236714,0.00019178,2]
[368318681,1751116238108,-500.0,0.00019178,2]
[368318682,1751116238118,-500.0,0.00019178,2]
[368318683,1751116238127,-500.0,0.00019178,2]
[368318684,1751116238136,-500.0,0.00019178,2]
[368318685,1751116238145,-500.0,0.00019178,2]
[368318686,1751116238156,-500.0,0.00019178,2]
[368318687,1751116238166,-460.0,0.00019178,2]
[368318688,1751116238175,-500.0,0.00019178,2]
[368318689,1751116238185,-500.0,0.00019178,2]
[368318690,1751116238194,-295.60569757,0.00019178,2]
[368318691,1751116238203,-460.0,0.00019178,2]
[368318692,1751116238212,-460.0,0.00019178,2]
[368318693,1751116238222,-460.0,0.00019178,2]
[368318694,1751116238231,-460.0,0.00019178,2]
[368318695,1751116238241,-460.0,0.00019178,2]
[368318696,1751116238250,-460.0,0.00019178,2]
[368318697,1751116238261,-445.8394413,0.00019178,2]
[368318698,1751116238270,-460.0,0.00019178,2]
[368318699,1751116238279,-460.0,0.00019178,2]
[368318700,1751116238289,-460.0,0.00019178,2]
[368318701,1751116238298,-460.0,0.00019178,2]
[368318702,1751116238307,-460.0,0.00019178,2]
[368318703,1751116238317,-460.0,0.00019178,2]
[368318704,1751116238326,-460.0,0.00019178,2]
[368318705,1751116238335,-461.67515817,0.00019178,2]
[368318706,1751116238344,-549.38365147,0.00019178,2]
[368318707,1751116238353,-460.0,0.00019178,2]
[368318708,1751116238362,-460.0,0.00019178,2]
[368318709,1751116238372,-460.0,0.00019178,2]
[368318710,1751116238382,-460.0,0.00019178,2]
[368318711,1751116238391,-460.0,0.00019178,2]
[368318712,1751116238400,-460.0,0.00019178,2]
[368318713,1751116238409,-683.15,0.00019178,2]